fUSD/lending_fUSD_20260515
["ID","MTS","AMOUNT","RATE_DAILY","PERIOD"]
[422316795,1778817048000,-28.16443144,0.00026063,2]
[422316791,1778817048000,-338.89006486,0.00026045,2]
[422316793,1778817048000,-51.16556856,0.00026063,2]
[422316792,1778817048000,-318.48993514,0.00026045,2]
[422316787,1778817048000,-865.60057108,0.00026576,2]
[422316790,1778817048000,-327.56004162,0.000335,30]
[422316788,1778817048000,-766.0,0.00027603,10]
[422316789,1778817048000,-545.19596881,0.000335,30]
[422316781,1778817048000,2472.29,0.00022423,2]
[422316786,1778817048000,-531.37,0.00026045,2]
[422316783,1778817048000,-186.54938442,0.00025423,2]
[422316784,1778817048000,-375.18789012,0.00025423,2]
[422316782,1778817048000,-1158.71,0.00022423,2]
[422316780,1778817048000,500.0,0.00016499,2]
[422316779,1778817048000,500.0,0.00016499,2]
[422316794,1778817048000,-999.0,0.00026063,2]
[422316785,1778817048000,-3069.26272546,0.00025423,2]
[422316807,1778817048000,-1078.33,0.00026143,2]
[422316797,1778817048000,-531.37,0.00026072,7]
[422316796,1778817048000,-1576.43,0.00026063,2]
[422316815,1778817048000,-1078.33,0.00026197,7]
[422316814,1778817048000,-657.38,0.00026184,7]
[422316809,1778817048000,-531.37,0.00026156,7]
[422316813,1778817048000,-531.37,0.00026184,30]
[422316811,1778817048000,-1078.33,0.0002617,7]
[422316810,1778817048000,-657.38,0.00026156,7]
[422316808,1778817048000,-1576.43,0.00026143,2]
[422316804,1778817048000,-1576.43,0.00026116,2]
[422316812,1778817048000,-1576.43,0.0002617,7]
[422316805,1778817048000,-531.37,0.00026128,2]
[422316803,1778817048000,-1078.33,0.00026116,2]
[422316802,1778817048000,-657.38,0.000261,2]
[422316801,1778817048000,-531.37,0.000261,30]
[422316799,1778817048000,-1078.33,0.00026089,7]
[422316800,1778817048000,-1576.43,0.00026089,7]
[422316798,1778817048000,-657.38,0.00026072,7]
[422316806,1778817048000,-657.38,0.00026128,2]
[422316849,1778817049000,-350.0,0.00033637,5]
[422316852,1778817049000,-500.0,0.0003379,120]
[422316853,1778817049000,-500.0,0.0003379,120]
[422316850,1778817049000,-159.0,0.00033718,3]
[422316854,1778817049000,-152.11,0.00033819,30]
[422316851,1778817049000,-40416.0,0.00033788,30]
[422316848,1778817049000,-496.19354449,0.000336,120]
[422316856,1778817049000,-152.1,0.00033819,30]
[422316846,1778817049000,-1252.51112323,0.00033563,2]
[422316847,1778817049000,-40416.0,0.00033591,30]
[422316858,1778817049000,-183.18370859,0.000339,120]
[422316855,1778817049000,-152.11,0.00033819,30]
[422316869,1778817049000,-40416.0,0.00033985,30]
[422316867,1778817049000,-350.0,0.00033973,5]
[422316863,1778817049000,-1460.42276489,0.000339,120]
[422316861,1778817049000,-1365.71913622,0.000339,120]
[422316862,1778817049000,-170.62507081,0.000339,120]
[422316865,1778817049000,-1000.0,0.00033924,30]
[422316864,1778817049000,-2347.91844182,0.000339,120]
[422316860,1778817049000,-179.58787957,0.000339,120]
[422316868,1778817049000,-152.0,0.00033978,15]
[422316857,1778817049000,-556.82,0.00033871,30]
[422316866,1778817049000,-605.0,0.00033945,11]
[422316878,1778817049000,-2258.3,0.00034182,7]
[422316881,1778817049000,-1000.0,0.00034246,120]
[422316873,1778817049000,-750.0,0.00034,2]
[422316871,1778817049000,-1000.0,0.00034,2]
[422316859,1778817049000,-172.47882652,0.000339,120]
[422316834,1778817049000,-11061.5653912,0.00033528,2]
[422316833,1778817049000,-429.05880519,0.00033517,6]
[422316841,1778817049000,-258.0,0.00033529,30]
[422316819,1778817049000,-1078.33,0.00026224,2]
[422316817,1778817049000,-531.37,0.00026212,2]
[422316816,1778817049000,-1576.43,0.00026197,7]
[422316818,1778817049000,-657.38,0.00026212,2]
[422316820,1778817049000,-1576.43,0.00026224,2]
[422316821,1778817049000,-531.37,0.0002624,7]
[422316832,1778817049000,-373.81425072,0.000335,30]
[422316827,1778817049000,-7358.74,0.00027397,10]
[422316830,1778817049000,-3631.0,0.00031423,2]
[422316823,1778817049000,-1576.43,0.00026251,7]
[422316831,1778817049000,-700.0,0.00032,30]
[422316826,1778817049000,-531.37,0.00026296,2]
[422316822,1778817049000,-1078.33,0.00026251,7]
[422316825,1778817049000,-1078.33,0.00026278,2]
[422316828,1778817049000,-3631.0,0.00028423,2]
[422316824,1778817049000,-531.37,0.00026268,30]
[422316829,1778817049000,-617.0,0.00030529,30]
[422316835,1778817049000,-649.0,0.00033529,30]
[422316839,1778817049000,-3787.0,0.00033529,30]
[422316836,1778817049000,-249.0,0.00033529,30]
[422316876,1778817049000,-152.0,0.0003408,7]
[422316837,1778817049000,-584.0,0.00033529,30]
[422316838,1778817049000,-2931.0,0.00033529,30]
[422316844,1778817049000,-397.0,0.00033529,30]
[422316845,1778817049000,-193.09870935,0.00033541,60]
[422316840,1778817049000,-358.0,0.00033529,30]
[422316842,1778817049000,-430.0,0.00033529,30]
[422316843,1778817049000,-273.0,0.00033529,30]
[422316872,1778817049000,-2619.13,0.00034,30]
[422316916,1778817049000,-1473.35987,0.00034378,7]
[422316870,1778817049000,-400.0,0.00034,120]
[422316910,1778817049000,-507.362597,0.00034378,7]
[422316915,1778817049000,-151.0,0.00034378,7]
[422316914,1778817049000,-1473.35987,0.00034378,7]
[422316911,1778817049000,-507.362597,0.00034378,7]
[422316913,1778817049000,-151.0,0.00034378,7]
[422316874,1778817049000,-2327.0,0.00034,7]
[422316917,1778817049000,-151.0,0.00034378,7]
[422316918,1778817049000,-1473.35987,0.00034378,7]
[422316920,1778817049000,-151.0,0.00034378,7]
[422316930,1778817049000,-151.0,0.00034379,7]
[422316919,1778817049000,-151.0,0.00034378,7]
[422316921,1778817049000,-151.0,0.00034378,7]
[422316922,1778817049000,-164.903415,0.00034378,7]
[422316924,1778817049000,-164.903415,0.00034378,7]
[422316923,1778817049000,-164.903415,0.00034378,7]
[422316925,1778817049000,-164.903415,0.00034378,7]
[422316929,1778817049000,-151.0,0.00034379,7]
[422316926,1778817049000,-40416.0,0.00034379,30]
[422316927,1778817049000,-151.878951,0.00034379,7]
[422316928,1778817049000,-151.0,0.00034379,7]
[422316931,1778817049000,-337.801354,0.00034379,7]
[422316933,1778817049000,-337.801354,0.00034379,7]
[422316934,1778817049000,-337.801354,0.00034379,7]
[422316935,1778817049000,-3223.66,0.000344,30]
[422316937,1778817049000,-625.0,0.00034423,2]
[422316936,1778817049000,-1354.0,0.00034423,2]
[422316932,1778817049000,-337.801354,0.00034379,7]
[422316909,1778817049000,-507.362597,0.00034378,7]
[422316908,1778817049000,-507.362597,0.00034378,7]
[422316912,1778817049000,-1473.35987,0.00034378,7]
[422316903,1778817049000,-353.114673,0.00034378,7]
[422316877,1778817049000,-398.334945,0.00034148,2]
[422316880,1778817049000,-1000.0,0.00034246,120]
[422316879,1778817049000,-40416.0,0.00034182,30]
[422316875,1778817049000,-795.70767995,0.00034052,2]
[422316883,1778817049000,-1000.0,0.00034246,120]
[422316893,1778817049000,-581.199893,0.00034378,7]
[422316894,1778817049000,-279.65418,0.00034378,7]
[422316904,1778817049000,-151.0,0.00034378,7]
[422316889,1778817049000,-581.199893,0.00034378,7]
[422316892,1778817049000,-279.65418,0.00034378,7]
[422316887,1778817049000,-222.0,0.00034311,120]
[422316882,1778817049000,-1000.0,0.00034246,120]
[422316888,1778817049000,-356.19,0.00034344,120]
[422316886,1778817049000,-150.0,0.00034267,2]
[422316884,1778817049000,-1000.0,0.00034246,120]
[422316890,1778817049000,-581.199893,0.00034378,7]
[422316891,1778817049000,-581.199893,0.00034378,7]
[422316897,1778817049000,-817.908956,0.00034378,7]
[422316905,1778817049000,-353.114673,0.00034378,7]
[422316902,1778817049000,-151.0,0.00034378,7]
[422316907,1778817049000,-353.114673,0.00034378,7]
[422316901,1778817049000,-151.0,0.00034378,7]
[422316906,1778817049000,-353.114673,0.00034378,7]
[422316896,1778817049000,-279.65418,0.00034378,7]
[422316899,1778817049000,-817.908956,0.00034378,7]
[422316898,1778817049000,-817.908956,0.00034378,7]
[422316895,1778817049000,-279.65418,0.00034378,7]
[422316885,1778817049000,-978.85749526,0.00034246,120]
[422316900,1778817049000,-817.908956,0.00034378,7]
[422316938,1778817050000,-3542.0,0.00034423,2]
[422316949,1778817050000,-358.0,0.00034529,30]
[422316950,1778817050000,-258.0,0.00034529,30]
[422316944,1778817050000,-649.0,0.00034529,30]
[422316948,1778817050000,-3787.0,0.00034529,30]
[422316946,1778817050000,-584.0,0.00034529,30]
[422316951,1778817050000,-430.0,0.00034529,30]
[422316939,1778817050000,-1270.0,0.00034423,2]
[422316945,1778817050000,-249.0,0.00034529,30]
[422316942,1778817050000,-366.95497307,0.00034444,30]
[422316941,1778817050000,-3631.0,0.00034423,2]
[422316940,1778817050000,-930.0,0.00034423,2]
[422316943,1778817050000,-605.0,0.00034507,12]
[422316947,1778817050000,-2931.0,0.00034529,30]
[422316956,1778817050000,-40416.0,0.00034576,30]
[422316954,1778817050000,-561.54,0.00034544,60]
[422316955,1778817050000,-3561.49,0.00034544,60]
[422316953,1778817050000,-397.0,0.00034529,30]
[422316952,1778817050000,-273.0,0.00034529,30]
[422316974,1778817050000,-211.5020095,0.00034928,60]
[422316973,1778817050000,-525.8183186,0.00034928,60]
[422316971,1778817050000,-260.0441222,0.00034928,60]
[422316972,1778817050000,-500.0,0.00034928,60]
[422316968,1778817050000,-53563.96587545,0.000349,7]
[422316965,1778817050000,-517.61256565,0.0003488,120]
[422316964,1778817050000,-151.0,0.00034878,14]
[422316959,1778817050000,-159.0,0.00034733,3]
[422316967,1778817050000,-2000.0,0.000349,10]
[422316966,1778817050000,-600.0,0.00034881,120]
[422316958,1778817050000,-195.89,0.00034705,14]
[422316961,1778817050000,-152.0,0.00034796,16]
[422316957,1778817050000,-338.61911754,0.00034595,25]
[422316963,1778817050000,-151.7538534,0.00034848,85]
[422316962,1778817050000,-467.62,0.00034833,7]
[422316960,1778817050000,-40416.0,0.00034773,30]
[422317070,1778817051000,-163.0,0.0003544,11]
[422317071,1778817051000,-1000.0,0.00035524,30]
[422317067,1778817051000,-40416.0,0.00035363,30]
[422317065,1778817051000,-500.0,0.00035343,60]
[422317068,1778817051000,-467.62,0.0003538,7]
[422317069,1778817051000,-168.31,0.000354,120]
[422317066,1778817051000,-500.0,0.00035343,60]
[422317074,1778817051000,-584.0,0.00035529,30]
[422317072,1778817051000,-649.0,0.00035529,30]
[422317073,1778817051000,-249.0,0.00035529,30]
[422317075,1778817051000,-2931.0,0.00035529,30]
[422317077,1778817051000,-1078.33,0.00026305,2]
[422317078,1778817051000,-531.37,0.00026324,7]
[422317080,1778817051000,-358.0,0.00035529,30]
[422317081,1778817051000,-258.0,0.00035529,30]
[422317082,1778817051000,-173.82252229,0.00035529,30]
[422317083,1778817051000,-256.17747771,0.00035529,30]
[422317084,1778817051000,-273.0,0.00035529,30]
[422317085,1778817051000,-397.0,0.00035529,30]
[422317086,1778817051000,-457.39881352,0.0003556,30]
[422317076,1778817051000,-1660.30649372,0.00035529,30]
[422317079,1778817051000,-2126.69350628,0.00035529,30]
[422317087,1778817055000,617.0,0.0002,2]
[422317088,1778817056000,617.0,0.00021,2]
[422317089,1778817060000,3766.01,0.0002,2]
[422317090,1778817075000,-2853.99,0.0002,2]
[422317091,1778817347000,152.0,0.00013636,7]
[422317135,1778818231000,-1117.89983778,0.00013071,2]
[422317137,1778818231000,-150.99,0.00013072,2]
[422317136,1778818231000,-151.0,0.00013072,2]
[422317129,1778818231000,-174.0,0.00013041,2]
[422317132,1778818231000,-151.0,0.00013071,2]
[422317127,1778818231000,-835.00741549,0.00012975,2]
[422317128,1778818231000,-173.42143227,0.00012975,2]
[422317130,1778818231000,-3.68108732,0.00013064,2]
[422317131,1778818231000,-230.75929386,0.00013064,2]
[422317126,1778818231000,-1855.97166681,0.00012975,2]
[422317125,1778818231000,-10932.37350862,0.00012975,2]
[422317134,1778818231000,-373.67016222,0.00013071,2]
[422317133,1778818231000,-151.0,0.00013071,2]
[422317124,1778818231000,-859.67288836,0.00012975,2]
[422317121,1778818231000,-2070.04320645,0.00012974,2]
[422317123,1778818231000,-2669.92430624,0.00012974,2]
[422317120,1778818231000,-2500.0,0.00012974,2]
[422317117,1778818231000,-160.3307657,0.00012812,2]
[422317119,1778818231000,-300.0,0.00012973,2]
[422317115,1778818231000,-150.0,0.00012744,2]
[422317118,1778818231000,-1200.0,0.00012973,2]
[422317116,1778818231000,-651.261,0.00012812,2]
[422317113,1778818231000,-1141.963235,0.0001,2]
[422317114,1778818231000,-246.60510591,0.0001,2]
[422317112,1778818231000,-437.436765,0.0001,2]
[422317138,1778818231000,-9999.99,0.00013072,2]
[422317122,1778818231000,-260.03248731,0.00012974,2]
[422317139,1778818231000,-500.0,0.00013073,2]
[422317141,1778818231000,-500.0,0.00013073,2]
[422317140,1778818231000,-500.0,0.00013073,2]
[422317168,1778818231000,-500.0,0.00013073,2]
[422317162,1778818231000,-500.0,0.00013073,2]
[422317169,1778818231000,-500.0,0.00013073,2]
[422317166,1778818231000,-500.0,0.00013073,2]
[422317165,1778818231000,-500.0,0.00013073,2]
[422317167,1778818231000,-500.0,0.00013073,2]
[422317163,1778818231000,-500.0,0.00013073,2]
[422317164,1778818231000,-500.0,0.00013073,2]
[422317171,1778818231000,-188.30602549,0.00013073,2]
[422317172,1778818231000,-500.0,0.00013073,2]
[422317170,1778818231000,-500.0,0.00013073,2]
[422317152,1778818231000,-226.79866287,0.00013073,2]
[422317155,1778818231000,-500.0,0.00013073,2]
[422317161,1778818231000,-500.0,0.00013073,2]
[422317159,1778818231000,-500.0,0.00013073,2]
[422317145,1778818231000,-500.0,0.00013073,2]
[422317142,1778818231000,-297.11397449,0.00013073,2]
[422317143,1778818231000,-500.0,0.00013073,2]
[422317144,1778818231000,-500.0,0.00013073,2]
[422317160,1778818231000,-500.0,0.00013073,2]
[422317146,1778818231000,-500.0,0.00013073,2]
[422317156,1778818231000,-500.0,0.00013073,2]
[422317148,1778818231000,-500.0,0.00013073,2]
[422317147,1778818231000,-500.0,0.00013073,2]
[422317157,1778818231000,-500.0,0.00013073,2]
[422317154,1778818231000,-500.0,0.00013073,2]
[422317150,1778818231000,-500.0,0.00013073,2]
[422317158,1778818231000,-500.0,0.00013073,2]
[422317176,1778818232000,-219.78669494,0.00013073,2]
[422317173,1778818232000,-500.0,0.00013073,2]
[422317175,1778818232000,-500.0,0.00013073,2]
[422317174,1778818232000,-500.0,0.00013073,2]
[422317178,1778818232000,-206.55502416,0.00013073,2]
[422317177,1778818232000,-500.0,0.00013073,2]
[422317180,1778818232000,-319.35718688,0.00013073,2]
[422317182,1778818232000,-395.4832,0.00013075,2]
[422317183,1778818232000,-46532.28477455,0.00013075,2]
[422317179,1778818232000,-500.0,0.00013073,2]
[422317184,1778818232000,-450.71712781,0.00013075,2]
[422317185,1778818232000,-382.3497729,0.00013075,2]
[422317181,1778818232000,-199.21728294,0.00013073,2]
[422317215,1778818237000,-150.0,0.00013488,2]
[422317212,1778818237000,-173.42143227,0.0001336,2]
[422317196,1778818237000,-183.21458505,0.00013074,2]
[422317213,1778818237000,-150.0,0.00013488,2]
[422317216,1778818237000,-151.19763869,0.00013488,2]
[422317214,1778818237000,-150.0,0.00013488,2]
[422317211,1778818237000,-507.9955196,0.00013347,2]
[422317208,1778818237000,-1855.9716668,0.0001325,2]
[422317207,1778818237000,-214.997284,0.00013236,2]
[422317205,1778818237000,-208.38824723,0.00013236,2]
[422317210,1778818237000,-187.6,0.00013296,2]
[422317203,1778818237000,-500.0,0.00013174,5]
[422317199,1778818237000,-1370339.72683458,0.00013075,2]
[422317201,1778818237000,-500.0,0.00013174,3]
[422317204,1778818237000,-500.0,0.00013174,6]
[422317202,1778818237000,-500.0,0.00013174,4]
[422317200,1778818237000,-500.0,0.00013174,2]
[422317198,1778818237000,-1558.13607521,0.00013075,2]
[422317197,1778818237000,-80736.78541495,0.00013075,2]
[422317217,1778818237000,-150.64077623,0.00013488,2]
[422317209,1778818237000,-859.67288836,0.00013296,2]
[422317206,1778818237000,-160.0,0.00013236,2]
[422317221,1778818237000,-150.0,0.00013488,2]
[422317229,1778818237000,-150.0,0.00013683,2]
[422317219,1778818237000,-152.60139806,0.00013488,2]
[422317233,1778818237000,-500.0,0.00013698,2]
[422317235,1778818237000,-500.0,0.00013698,2]
[422317237,1778818237000,-512.35752927,0.00013698,2]
[422317240,1778818237000,-428.79427606,0.00013698,2]
[422317238,1778818237000,-516.19452836,0.00013698,2]
[422317239,1778818237000,-500.0,0.00013698,2]
[422317234,1778818237000,-500.0,0.00013698,2]
[422317232,1778818237000,-500.0,0.00013698,2]
[422317236,1778818237000,-500.0,0.00013698,2]
[422317224,1778818237000,-1855.9716668,0.00013525,2]
[422317227,1778818237000,-859.67288836,0.00013617,2]
[422317226,1778818237000,-161.12377315,0.00013598,3]
[422317225,1778818237000,-150.0,0.00013553,2]
[422317223,1778818237000,-150.0,0.00013488,2]
[422317218,1778818237000,-251.07260553,0.00013488,2]
[422317222,1778818237000,-150.0,0.00013488,2]
[422317220,1778818237000,-250.79091868,0.00013488,2]
[422317231,1778818237000,-617.32264488,0.00013698,2]
[422317230,1778818237000,-234.44038118,0.00013688,2]
[422317228,1778818237000,-150.0,0.00013618,2]
[422317264,1778818238000,-388.11839271,0.00013698,2]
[422317265,1778818238000,-500.0,0.00013698,2]
[422317260,1778818238000,-500.0,0.00013698,2]
[422317262,1778818238000,-500.0,0.00013698,2]
[422317266,1778818238000,-500.0,0.00013698,2]
[422317274,1778818238000,-1855.9716668,0.000138,2]
[422317268,1778818238000,-581.82860993,0.00013698,2]
[422317276,1778818238000,-150.0,0.00013813,2]
[422317270,1778818238000,-1238.59,0.000137,2]
[422317267,1778818238000,-500.0,0.00013698,2]
[422317286,1778818238000,-150.0,0.00014009,2]
[422317263,1778818238000,-500.0,0.00013698,2]
[422317287,1778818238000,-150.0,0.00014074,2]
[422317288,1778818238000,-1855.9716668,0.00014075,2]
[422317291,1778818238000,-173.42143227,0.0001413,2]
[422317278,1778818238000,-150.0,0.00013879,2]
[422317269,1778818238000,-2500.0,0.00013699,2]
[422317272,1778818238000,-150.0,0.00013748,2]
[422317256,1778818238000,-500.0,0.00013698,2]
[422317261,1778818238000,-500.0,0.00013698,2]
[422317242,1778818238000,-328.63556481,0.00013698,2]
[422317241,1778818238000,-500.0,0.00013698,2]
[422317244,1778818238000,-500.0,0.00013698,2]
[422317243,1778818238000,-500.0,0.00013698,2]
[422317245,1778818238000,-500.0,0.00013698,2]
[422317246,1778818238000,-500.0,0.00013698,2]
[422317257,1778818238000,-500.0,0.00013698,2]
[422317248,1778818238000,-500.0,0.00013698,2]
[422317271,1778818238000,-173.42143227,0.00013745,2]
[422317250,1778818238000,-500.0,0.00013698,2]
[422317253,1778818238000,-500.0,0.00013698,2]
[422317247,1778818238000,-500.0,0.00013698,2]
[422317251,1778818238000,-500.0,0.00013698,2]
[422317258,1778818238000,-500.0,0.00013698,2]
[422317249,1778818238000,-500.0,0.00013698,2]
[422317255,1778818238000,-500.0,0.00013698,2]
[422317254,1778818238000,-500.0,0.00013698,2]
[422317259,1778818238000,-500.0,0.00013698,2]
[422317252,1778818238000,-280.59893862,0.00013698,2]
[422317292,1778818238000,-150.0,0.00014139,2]
[422317294,1778818238000,-150.0,0.00014204,2]
[422317282,1778818238000,-835.00741549,0.00013938,2]
[422317343,1778818238000,-154.13236172,0.00014986,2]
[422317339,1778818238000,-150.0,0.00014921,2]
[422317345,1778818238000,-210.36484867,0.00014986,2]
[422317347,1778818238000,-272.48028711,0.00014986,2]
[422317280,1778818238000,-859.67288836,0.00013938,2]
[422317335,1778818238000,-835.00741549,0.000149,2]
[422317349,1778818238000,-252.11887754,0.00014986,2]
[422317351,1778818238000,-239.69471061,0.00014986,2]
[422317364,1778818238000,-300.0,0.00014999,2]
[422317366,1778818238000,-11094885.58351852,0.00015,2]
[422317353,1778818238000,-234.44038118,0.0001499,2]
[422317369,1778818238000,-3239.8698,0.00015,2]
[422317356,1778818238000,-300.0,0.00014999,2]
[422317354,1778818238000,-151.0,0.00014997,2]
[422317358,1778818238000,-666.0,0.00014999,2]
[422317360,1778818238000,-300.0,0.00014999,2]
[422317362,1778818238000,-666.0,0.00014999,2]
[422317341,1778818238000,-172.1194318,0.00014986,2]
[422317333,1778818238000,-1855.9716668,0.000149,2]
[422317337,1778818238000,-173.42143227,0.000149,2]
[422317329,1778818238000,-859.67288836,0.000149,2]
[422317284,1778818238000,-150.0,0.00013944,2]
[422317298,1778818238000,-859.67288836,0.00014258,2]
[422317331,1778818238000,-888.15354749,0.000149,3]
[422317300,1778818238000,-150.0,0.0001427,2]
[422317302,1778818238000,-150.0,0.00014335,2]
[422317304,1778818238000,-1855.9716668,0.0001435,2]
[422317308,1778818238000,-150.0,0.00014465,2]
[422317306,1778818238000,-150.0,0.000144,2]
[422317310,1778818238000,-150.0,0.00014487,2]
[422317296,1778818238000,-287.0,0.00014227,2]
[422317312,1778818238000,-173.42143227,0.00014515,2]
[422317320,1778818238000,-1855.9716668,0.00014625,2]
[422317327,1778818238000,-150.0,0.00014856,2]
[422317326,1778818238000,-150.0,0.00014791,2]
[422317323,1778818238000,-150.0,0.00014726,2]
[422317285,1778818238000,-150.0,0.00013987,2]
[422317314,1778818238000,-150.0,0.0001453,2]
[422317318,1778818238000,-150.0,0.00014595,2]
[422317322,1778818238000,-150.0,0.00014661,2]
[422317316,1778818238000,-859.67288836,0.00014579,2]
[422317622,1778818240000,-999083.15034277,0.00015,2]
[422317620,1778818240000,-183.21458503,0.00013683,2]
[422317842,1778818242000,-274.06078536,0.00015,2]
[422317952,1778818246000,-183.21458503,0.00014291,2]
[422317953,1778818246000,-3770.05664302,0.00015,2]
[422317966,1778818283000,288.990618,0.000245,120]
[422317979,1778818513000,232.0,0.00024867,120]
[422317980,1778818514000,232.0,0.00026111,120]
[422317981,1778818530000,160.0,0.00025612,120]
[422317982,1778818531000,160.0,0.00026892,120]
[422317984,1778818704000,321.59376265,0.00013505,21]
[422317987,1778818775000,500.0,0.00013073,7]
[422317988,1778818776000,500.0,0.00013073,8]
[422317989,1778818776000,500.0,0.00013073,9]
[422317991,1778818776000,500.0,0.00013074,11]
[422317990,1778818776000,500.0,0.00013074,10]
[422317992,1778818802000,172.45350599,0.00027397,120]
[422317993,1778818810000,174.0,0.00025832,120]
[422317994,1778818811000,174.0,0.00027124,120]
[422317995,1778818876000,-150.0,0.00012383,2]
[422317996,1778818904000,935710.0,0.00027397,120]
[422317998,1778819051000,500.0,0.0001226,2]
[422318004,1778819103000,168.8,6.223e-05,2]
[422318005,1778819117000,200.0,0.00012189,2]
[422318008,1778819210000,974.66,0.0001212,2]
[422318009,1778819270000,178.11,0.00012329,2]
[422318011,1778819343000,583.38415744,0.00012157,2]
[422318022,1778819431000,-724.528,0.00012618,2]
[422318018,1778819431000,-2114.45584256,0.00012157,2]
[422318020,1778819431000,-178.09,0.00012608,2]
[422318028,1778819431000,-2000.0,0.00012775,2]
[422318019,1778819431000,-2000.0,0.00012301,2]
[422318026,1778819431000,-1200.0,0.00012773,2]
[422318023,1778819431000,-472.71057304,0.00012765,2]
[422318021,1778819431000,-160.33,0.00012618,2]
[422318024,1778819431000,-300.0,0.00012773,2]
[422318027,1778819431000,-300.0,0.00012773,2]
[422318029,1778819431000,-5000.0,0.00012775,2]
[422318030,1778819431000,-556.5095,0.00012775,2]
[422318031,1778819431000,-1252021.60621875,0.00012775,2]
[422318025,1778819431000,-300.0,0.00012773,2]
[422318049,1778819432000,-10325.11803028,0.00012775,2]
[422318048,1778819432000,-831.64957871,0.00012775,2]
[422318057,1778819437000,-549.19557,0.00012775,2]
[422318056,1778819437000,-2041.44350403,0.00012775,2]
[422318055,1778819437000,-1000.0,0.00012775,2]
[422318058,1778819437000,-11942.69564278,0.00012775,2]
[422318060,1778819437000,-219866.55275776,0.00012775,2]
[422318059,1778819437000,-1421.73869769,0.00012775,2]
[422318061,1778819437000,-150.0,0.00012797,2]
[422318065,1778819437000,-1000.0,0.00012874,2]
[422318062,1778819437000,-736.86247578,0.00012798,2]
[422318064,1778819437000,-194.03812884,0.00012798,2]
[422318066,1778819437000,-10802.94126919,0.00012874,2]
[422318063,1778819437000,-11629.04897052,0.00012798,2]
[422318111,1778819438000,-500.0,0.00012874,2]
[422318138,1778819438000,-500.0,0.00012874,2]
[422318135,1778819438000,-275.31922847,0.00012874,2]
[422318123,1778819438000,-500.0,0.00012874,2]
[422318133,1778819438000,-500.0,0.00012874,2]
[422318132,1778819438000,-258.73081118,0.00012874,2]
[422318118,1778819438000,-500.0,0.00012874,2]
[422318119,1778819438000,-500.0,0.00012874,2]
[422318142,1778819438000,-500.0,0.00012874,2]
[422318115,1778819438000,-500.0,0.00012874,2]
[422318105,1778819438000,-500.0,0.00012874,2]
[422318113,1778819438000,-500.0,0.00012874,2]
[422318121,1778819438000,-500.0,0.00012874,2]
[422318125,1778819438000,-500.0,0.00012874,2]
[422318146,1778819438000,-500.0,0.00012874,2]
[422318130,1778819438000,-500.0,0.00012874,2]
[422318152,1778819438000,-500.0,0.00012874,2]
[422318154,1778819438000,-500.0,0.00012874,2]
[422318156,1778819438000,-500.0,0.00012874,2]
[422318158,1778819438000,-500.0,0.00012874,2]
[422318160,1778819438000,-500.0,0.00012874,2]
[422318162,1778819438000,-500.0,0.00012874,2]
[422318164,1778819438000,-500.0,0.00012874,2]
[422318166,1778819438000,-500.0,0.00012874,2]
[422318171,1778819438000,-500.0,0.00012874,2]